Cogmind - Beta 16.1 @@@ ROGUE MODE // 2026.03.31 @ 12:59:32 Player: Rainbow Dash Result: Self-destructed Performance ------------- Evolutions (6) 3000 Regions Visited (11) 2200 Robots Destroyed (115) 575 Value Destroyed (4138) 4138 Prototype IDs (31) 620 Alien Tech Used (2) 400 Bonus (325) 325 TOTAL SCORE: 11258 Bonus ------- High Alert Combat Kills 33 Met Zhirov 300 Friendly Fire -8 Cogmind --------- Core Integrity 938/1150 Matter 300/300 Energy 690/690 System Corruption 0% Temperature Cool (0) Movement Hovering (230) Ox4 Location -4/Factory Parts ------- > --- POWER (2) -------- Light Quantum Reactor > --- PROPULSION (5) --- Gyrokinetic Inverter > --- UTILITY (8) ------ Large Storage Unit Advanced Energy Well Enhanced Optical Array Advanced Melee Analysis Suite Improved Hacking Suite Advanced Hacking Suite > --- WEAPON (4) ------- Hypervelocity Gauss Cannon Flail Makeshift Sword > --- INVENTORY (15) --- Compact Battery (200) Enhanced Optical Array Precision Matter Filter Improved Actuator Array Improved Actuator Array Advanced Transmission Jammer Improved Corruption Screen Recalibrator Heavy Rocket Launcher Peak State ------------ > --- POWER ------------ Light Nuclear Core Light Quantum Reactor > --- PROPULSION ------- Gravmag Array Gyrokinetic Inverter Gyrokinetic Inverter Gyrokinetic Inverter > --- UTILITY ---------- Large Storage Unit Advanced Energy Well Enhanced Optical Array Advanced Melee Analysis Suite Experimental Core Shielding Improved Hacking Suite Advanced Hacking Suite > --- WEAPON ----------- Hypervelocity Gauss Cannon Flail Makeshift Sword Heavy Pick > --- INVENTORY -------- Compact Battery Enhanced Optical Array Precision Matter Filter Improved Actuator Array Improved Actuator Array Advanced Transmission Jammer Improved Corruption Screen Recalibrator Heavy Rocket Launcher [Rating: 100] Favorites ----------- Power Micro Fission Core Engine Improved Deuterium Engine Power Core Micro Fission Core Reactor Light Quantum Reactor Propulsion Gyrokinetic Inverter Leg Cargo Legs Wheel Armored Huge Wheel Hover Unit Gyrokinetic Inverter Utility Large Storage Unit Device Microactuators Storage Large Storage Unit Processor Improved Signal Interpreter Hackware System Shield Protection Improved Medium Armor Plating Weapon Heavy Mace Energy Gun Small Laser Energy Cannon Subdweller Beam Cannon Ballistic Gun Assault Rifle Ballistic Cannon Battle Cannon Launcher Heavy Rocket Launcher Impact Weapon Heavy Mace Slashing Weapon Katana Piercing Weapon Heavy Pick Build | -11 -10 -10 -8 -7 -6 -5 -5 -5 -5 -4 -4 ------- Run | Yrd Mat Sub Mat Fac Fac Fac Upp Upp Zhi Pro Fac Slots Evolved 12 | . . . 4 2 2 2 . . . . 2 Power 1 | . . . . . . 1 . . . . . Propulsion 3 | . . . 2 . . 1 . . . . . Utility 6 | . . . 1 2 2 . . . . . 1 Weapon 2 | . . . 1 . . . . . . . 1 Parts Attached 129 | 7 2 8 25 16 37 15 1 5 3 5 5 Power 20 | 1 . 2 3 3 4 4 . 1 . 1 1 Engine 11 | 1 . 2 . 3 3 2 . . . . . Core 8 | . . . 3 . 1 2 . 1 . 1 . Reactor 1 | . . . . . . . . . . . 1 Propulsion 27 | 2 . 1 5 3 8 5 . 2 . 1 . Treads . | . . . . . . . . . . . . Leg 8 | 2 . 1 5 . . . . . . . . Wheel 5 | . . . . 3 2 . . . . . . Hover 14 | . . . . . 6 5 . 2 . 1 . Flight . | . . . . . . . . . . . . Utility 52 | 2 . 2 5 9 18 6 1 2 3 1 3 Device 27 | 1 . 2 2 2 13 1 1 2 1 1 1 Storage 4 | 1 . . 1 . . 1 . . 1 . . Processor 10 | . . . 1 4 2 3 . . . . . Hackware 3 | . . . . . . 1 . . . . 2 Protection 8 | . . . 1 3 3 . . . 1 . . Artifact . | . . . . . . . . . . . . Weapon 30 | 2 2 3 12 1 7 . . . . 2 1 Energy Gun 3 | 1 . . 2 . . . . . . . . Energy Cannon 3 | . . 1 2 . . . . . . . . Ballistic Gun 7 | 1 1 1 4 . . . . . . . . Ballistic Cannon 2 | . . 1 . . . . . . . . 1 Launcher 3 | . 1 . . 1 1 . . . . . . Special Weapon . | . . . . . . . . . . . . Impact Weapon 5 | . . . 3 . 1 . . . . 1 . Slashing Weapon 3 | . . . 1 . 1 . . . . 1 . Piercing Weapon 4 | . . . . . 4 . . . . . . Special Melee Weapon . | . . . . . . . . . . . . Unidentified Prototypes 8 | . . 1 . . . 1 . . 5 . 1 Parts Lost 58 | . . 6 6 3 21 1 4 3 . 7 7 Power 13 | . . 2 2 1 2 1 . 2 . 2 1 Propulsion 11 | . . . . . 3 . 2 1 . 2 3 Utility 22 | . . 1 2 2 12 . 2 . . 1 2 Weapon 12 | . . 3 2 . 4 . . . . 2 1 Highest Loss Streak 6 | . . 4 2 2 6 1 4 3 . 6 6 To Critical Strikes . | . . . . . . . . . . . . Average Backups 10 | 1 2 6 12 12 11 8 13 11 11 11 8 Power 1 | . 1 1 1 2 1 . 2 1 . . . Propulsion 2 | . . 2 3 2 3 4 4 2 2 . . Utility 4 | . . . 3 4 4 1 5 5 7 8 7 Weapon 2 | . 1 2 3 3 2 1 2 2 2 2 1 Tool/Special . | . . . . . . . . . . . . Unused Backups 24 | . . 1 4 6 7 . . . . 1 5 Power 3 | . . . 1 1 1 . . . . . . Propulsion 4 | . . . . 3 1 . . . . . . Utility 12 | . . 1 1 . 4 . . . . 1 5 Weapon 4 | . . . 2 1 1 . . . . . . Tool/Special 1 | . . . . 1 . . . . . . . Average Slot Usage (%) 87 | . 100 79 84 83 85 95 97 96 98 92 84 Engine 4 | . 14 11 1 6 5 . . . . . . Core 3 | . . . 6 . . 7 11 10 11 7 4 Leg 5 | . 28 13 24 1 . . . . . . . Wheel 4 | . . . . 14 6 . . . . . . Hover 9 | . . . . . 6 28 28 28 29 25 19 Device 16 | . 14 19 15 16 24 8 13 14 13 8 3 Storage 7 | . 14 11 7 7 6 5 5 5 5 7 10 Processor 10 | . . . 4 11 10 18 17 17 17 17 10 Protection 1 | . . . . . 3 . . . 1 5 4 Energy Gun 1 | . 8 4 3 . . . . . . . . Energy Cannon 1 | . . 5 3 . . . . . . . . Ballistic Gun 2 | . 18 8 5 . . . . . . . . Impact Weapon 5 | . . . 4 14 5 4 2 5 5 5 5 Slashing Weapon 3 | . . . 3 7 3 5 5 5 5 4 5 Piercing Weapon 3 | . . . . . 9 5 5 5 5 5 4 Peak Build Rating 100 | 7 7 28 46 49 69 84 85 85 88 88 100 Average Rating 54 | 5 7 23 39 43 58 76 82 81 82 84 92 On Entrance 48 | . 7 7 28 43 42 53 82 71 82 88 84 Avg Prop Armor Cover (%) 4 | . . . . . . 1 5 6 . . . Naked Turns . | . . . . . . . . . . . . Heaviest Build 65 | 12 14 23 45 46 63 52 49 65 65 61 61 Greatest Support 83 | 20 20 55 83 80 56 55 53 51 51 53 53 Greatest Overweight (x) 4 | . . . . 1 2 1 1 1 1 1 4 Average Overweight (x) . | . . . . . . . . . 1 . . Largest Inventory Capacity 15 | 8 8 8 15 15 15 15 15 15 15 15 15 Average Capacity 13 | 7 8 8 14 15 15 15 15 15 15 15 15 Most Carried 15 | 2 3 8 15 15 15 15 15 14 15 15 10 Average Carried 11 | 1 2 6 12 14 13 9 14 12 12 11 8 Final Capacity 15 | 8 8 8 15 15 15 15 15 15 15 15 15 Final Carried 15 | 2 3 8 15 15 10 15 14 11 15 9 9 Class Distribution -------------------- 52% | Gladiator 17% | Mutant 11% | Infiltrator-Gladiator 4% | Scavenger-Gladiator 3% | Scavenger-Skirmisher 3% | Hacker-Gladiator 3% | Scout Dominant Class ---------------- Mutant | -10/Materials Mutant | -10/Subcaves Scavenger-Gladiator | -8/Materials Gladiator | -7/Factory Gladiator | -6/Factory Gladiator | -5/Factory Gladiator | -5/Upper Caves Gladiator | -5/Upper Caves Gladiator | -5/Zhirov Gladiator | -4/Proximity Caves Hacker-Gladiator | -4/Factory Resources | -11 -10 -10 -8 -7 -6 -5 -5 -5 -5 -4 -4 ----------- Run | Yrd Mat Sub Mat Fac Fac Fac Upp Upp Zhi Pro Fac Matter Collected 2534 | 221 . 297 676 185 561 142 207 65 . 130 50 Remotely . | . . . . . . . . . . . . Salvage Created 4809 | 17 52 206 1591 602 1567 142 . 48 . 119 465 Parts 266 | 3 7 17 75 34 103 . . 3 . 5 19 Haulers Intercepted 7 | . . . 3 2 1 . . . . . 1 Recyclers Shooed . | . . . . . . . . . . . . Parts Field Recycled . | . . . . . . . . . . . . Retrieved Matter . | . . . . . . . . . . . . Parts Self-Destructed 8 | . . 1 . . . . . 2 . 5 . Prevented 1 | . . . . . . . . 1 . . . Parts Restored . | . . . . . . . . . . . . Kills | -11 -10 -10 -8 -7 -6 -5 -5 -5 -5 -4 -4 ------- Run | Yrd Mat Sub Mat Fac Fac Fac Upp Upp Zhi Pro Fac Combat Hostiles Destroyed 82 | . 4 6 24 10 23 1 . 2 . 4 8 Melee 43 | . . . 5 6 19 . . 2 . 3 8 Guns 16 | . 1 2 13 . . . . . . . . Cannons 7 | . . 3 4 . . . . . . . . AOE 12 | . 3 1 1 4 3 . . . . . . Classes Destroyed 18 | 1 2 1 9 1 3 . . . . 1 . Worker 5 | . . . 1 1 3 . . . . . . Builder 5 | . . . 2 . 2 1 . . . . . Tunneler 3 | 1 . . . 1 1 . . . . . . Hauler 7 | . . . 3 2 1 . . . . . 1 Recycler 4 | . . . 2 1 1 . . . . . . Mechanic 2 | . . . . . 1 1 . . . . . Operator 4 | . . . 2 1 1 . . . . . . Drone 1 | . . . . . . . . . . 1 . Watcher 3 | . . . 1 . 2 . . . . . . Swarmer 19 | . 3 . . 4 3 . . 2 . 2 5 Grunt 22 | . 1 . 15 . 3 . . . . . 3 Brawler 1 | . . . . . 1 . . . . . . Duelist 3 | . . . 2 . . . . . . 1 . Sentry 10 | . . . 6 . 3 1 . . . . . Specialist 4 | . . . . . 4 . . . . . . Hunter 7 | . . . 1 3 3 . . . . . . Programmer 9 | . . . . 3 6 . . . . . . Subdweller 6 | . . 6 . . . . . . . . . Best Kill Streak 8 | 1 3 2 6 7 3 1 . 2 . 2 8 Combat Bots Only 8 | . 3 2 3 6 3 1 . 2 . 2 8 Max Kills in Single Turn 3 | 1 1 2 2 2 3 1 . 1 . 1 1 Gunslinging 1 | . . 1 . . . . . . . . . Exploded 3 | . 1 1 1 2 3 . . . . . . Melee 1 | . . . 1 1 1 . . 1 . 1 1 Uniques/NPCs Destroyed . | . . . . . . . . . . . . Combat | -11 -10 -10 -8 -7 -6 -5 -5 -5 -5 -4 -4 -------- Run | Yrd Mat Sub Mat Fac Fac Fac Upp Upp Zhi Pro Fac Hostile Shots Fired 794 | . 16 32 126 89 301 10 32 28 . 97 63 Missed 215 | . 4 5 33 25 71 3 9 10 . 38 17 Hits 579 | . 12 27 93 64 230 7 23 18 . 59 46 Melee 9 | . . . 3 . 1 . . 1 . 4 . Projectile 570 | . 12 27 90 64 229 7 23 17 . 55 46 Critical Strikes 25 | . 1 2 4 . 8 . . . . 4 6 Actively Blocked 3 | . . . 1 . . . . . . 1 1 Part Disruptions 1 | . . . . . 1 . . . . . . Damage Taken 8765 | . 107 706 1473 873 2935 160 429 300 . 1029 753 Core 1612 | . 35 127 155 213 597 . 97 12 . 164 212 Absorbed by Shields 264 | . . . . . 16 . . 64 . 168 16 Redirected to Shielding 200 | . . . 50 . . . . . . 96 54 Regen/Repaired (Parts) 12 | . . . 12 . . . . . . . . Core Remaining (%) 61 | 100 . 35 71 69 29 . . . . 66 . Volleys Fired 110 | 1 7 30 59 5 2 . 6 . . . . Largest 3 | 2 2 2 3 1 1 . 1 . . . . Hottest 163 | 60 60 113 163 36 39 . 39 . . . . Shots Fired 244 | 2 11 57 161 5 2 . 6 . . . . Gun 171 | 2 8 29 132 . . . . . . . . Cannon 53 | . . 26 27 . . . . . . . . Launcher 20 | . 3 2 2 5 2 . 6 . . . . Special . | . . . . . . . . . . . . Kinetic 137 | 1 4 37 95 . . . . . . . . Thermal 87 | 1 4 18 64 . . . . . . . . Explosive 15 | . 3 2 2 . 2 . 6 . . . . Electromagnetic 5 | . . . . 5 . . . . . . . Robot Hit Streak 16 | 1 4 14 16 2 . . . . . . . Robot Miss Streak 6 | . 2 1 6 4 . . . . . . . Penetration Max . | . . . . . . . . . . . . Secondary Targets 3 | . . 1 2 . . . . . . . . Max Gunslinging Chain 1 | . . 1 1 . . . . . . . . Shots Hit Robots 332 | 1 7 31 112 31 95 12 . 3 . 15 25 Core Hits 147 | 1 4 12 57 15 40 . . 1 . 4 13 Critical Kills 1 | . . . 1 . . . . . . . . Critical Parts Destroyed 4 | . . . . . 1 1 . 1 . 1 . Critical Strikes 27 | . . . 3 2 13 2 . 1 . 3 3 Meltdown 1 | . . . 1 . . . . . . . . Smash 4 | . . . . . 1 1 . 1 . 1 . Sever 18 | . . . 2 2 9 1 . . . 2 2 Impale 4 | . . . . . 3 . . . . . 1 Melee Attacks 327 | . . . 28 58 149 23 . 5 . 21 43 Impact 70 | . . . 7 17 17 13 . 4 . 9 3 Slashing 167 | . . . 21 41 51 7 . 1 . 9 37 Piercing 90 | . . . . . 81 3 . . . 3 3 Sneak Attacks 24 | . . . 2 4 13 3 . . . . 2 Combat Hostiles . | . . . . . . . . . . . . Follow-up Attacks 60 | . . . 5 9 32 4 . 1 . 4 5 Damage Inflicted 11211 | 12 262 723 2657 1392 3843 612 . 154 . 531 1025 Guns 1570 | 12 56 276 1226 . . . . . . . . Cannons 726 | . . 268 458 . . . . . . . . Explosions 1061 | . 206 179 209 169 298 . . . . . . Melee 7848 | . . . 758 1223 3545 612 . 154 . 531 1025 Ramming 6 | . . . 6 . . . . . . . . Kinetic 1208 | . 23 309 876 . . . . . . . . Thermal 1386 | 12 33 235 808 . 298 . . . . . . Explosive 594 | . 206 179 209 . . . . . . . . Electromagnetic 169 | . . . . 169 . . . . . . . Impact 1670 | . . . 150 328 351 383 . 113 . 265 80 Slashing 4106 | . . . 608 895 1308 162 . 41 . 217 875 Piercing 2072 | . . . . . 1886 67 . . . 49 70 Highest Corruption 4 | . . . . 2 4 . . . . . . Average Corruption 2 | . . . . 1 2 . . . . . . Corruption Purged 3 | . . . . . 3 . . . . . . Corruption Blocked . | . . . . . . . . . . . . Effects 19 | . . . . 5 14 . . . . . . Message Errors 6 | . . . . 1 5 . . . . . . Matter Fused 3 | . . . . 1 2 . . . . . . Heat Flow Errors 3 | . . . . 2 1 . . . . . . Energy Discharges 2 | . . . . . 2 . . . . . . Data Loss (minor) 4 | . . . . 1 3 . . . . . . Data Loss (major) 1 | . . . . . 1 . . . . . . Overload Shots . | . . . . . . . . . . . . Overflow Damage 946 | . 24 . 94 99 374 255 . 62 . 12 26 Projectiles . | . . . . . . . . . . . . Explosions 24 | . 24 . . . . . . . . . . Melee 922 | . . . 94 99 374 255 . 62 . 12 26 Knockbacks 10 | . . . 1 2 2 1 . . . 4 . Impact 9 | . . . . 2 2 1 . . . 4 . Kinetic 1 | . . . 1 . . . . . . . . Secondary . | . . . . . . . . . . . . Self-Inflicted Damage 47 | . . 19 8 . . . 20 . . . . Shots 3 | . . 1 1 . . . 1 . . . . Rammed . | . . . . . . . . . . . . Targets Rammed 1 | . . . 1 . . . . . . . . Kicked 1 | . . . 1 . . . . . . . . Crushed . | . . . . . . . . . . . . Highest Temperature 409 | . 24 . 409 158 191 32 288 176 151 124 19 Average Temperature 91 | . 16 . 108 75 100 13 98 120 86 58 7 Received Heat Transfer 1456 | . 24 54 639 . 285 27 60 51 . 220 96 Effects 2 | . . . 1 . . . 1 . . . . Shutdowns 1 | . . . 1 . . . . . . . . Interference 1 | . . . . . . . 1 . . . . Siege Activations . | . . . . . . . . . . . . Martial Activations . | . . . . . . . . . . . . Shielding Activations . | . . . . . . . . . . . . Robots Disrupted . | . . . . . . . . . . . . Combat Hostiles . | . . . . . . . . . . . . Robots Corrupted 6 | . . . 1 1 1 2 . . . 1 . Combat Hostiles 4 | . . . 1 . 1 1 . . . 1 . Parts Fried 10 | . . . 1 1 2 4 . 1 . 1 . Impact Corruptions 20 | . . . 1 4 5 8 . 1 . 1 . Robots Melted 1 | . . . 1 . . . . . . . . Combat Hostiles . | . . . . . . . . . . . . Parts Melted 3 | . . 2 1 . . . . . . . . Heat Transferred 1942 | 25 75 321 1321 . 200 . . . . . . Parts Sabotaged . | . . . . . . . . . . . . Parts Stolen . | . . . . . . . . . . . . Parts Stripped . | . . . . . . . . . . . . Power Chain Reactions . | . . . . . . . . . . . . Alert | -11 -10 -10 -8 -7 -6 -5 -5 -5 -5 -4 -4 ------- Run | Yrd Mat Sub Mat Fac Fac Fac Upp Upp Zhi Pro Fac Maximum Alert Level 2 | . . . 2 . 1 . . . . . 1 Low Security (%) 72 | 100 100 . 36 100 76 100 . . . . . Level 1 24 | . . . 51 . 23 . . . . . 100 Level 2 2 | . . . 12 . . . . . . . . Level 3 . | . . . . . . . . . . . . Level 4 . | . . . . . . . . . . . . Level 5 . | . . . . . . . . . . . . High Security . | . . . . . . . . . . . . Max Security . | . . . . . . . . . . . . Peak Influence 425 | 5 92 . 425 193 308 129 . . . . 357 Initial 356 | . . . . 193 25 129 . . . . 356 Average 147 | 1 29 . 255 100 129 61 . . . . 312 Influence Increases 3125 | 5 120 . 861 373 869 61 75 55 . 190 516 Destroy 0b10 Robot/C 1500 | . 80 . 480 200 460 20 . 40 . 60 160 Destroy 0b10 Robot/NC 170 | 5 . . 55 30 60 10 . . . 5 5 Destroy Leader 390 | . 10 . 128 64 136 10 . . . 20 22 Successful Hack 98 | . 8 . 62 10 12 . . . . . 6 Disable Machine 135 | . . . 30 15 75 15 . . . . . Destroy Structure 127 | . 22 . 31 9 51 6 . . . . 8 Advance Influence 300 | . . . . . . . . . . . 300 Partial Spotted 15 | . . . 15 . . . . . . . . Lose Combat Pursuer 390 | . . . 60 45 75 . 75 15 . 105 15 Influence Decreases 2853 | 5 58 62 436 744 658 326 75 50 5 100 334 Entered New Map 466 | . . 30 . 232 29 136 . . 5 . 34 Time Decay 1847 | 5 58 32 376 482 419 180 75 20 . 70 130 Search Patrol Dispatched 100 | . . . . . . . . . . . 100 Lost Part 440 | . . . 60 30 210 10 . 30 . 30 70 Squads Dispatched 27 | . 1 . 3 9 11 1 . 1 . . 1 Investigation 7 | . . . . 5 2 . . . . . . Extermination 9 | . . . . 4 4 1 . . . . . Reinforcement 10 | . 1 . 3 . 5 . . . . . 1 Assault 1 | . . . . . . . . 1 . . . Garrison . | . . . . . . . . . . . . Intercept . | . . . . . . . . . . . . Searches Triggered 1 | . . . . . . . . . . . 1 Construction Impeded . | . . . . . . . . . . . . Haulers Reinforced 1 | . . . . . 1 . . . . . . Active Scanning Responses . | . . . . . . . . . . . . Cargo Convoy Interrupts 1 | . . . . . 1 . . . . . . Stealth | -11 -10 -10 -8 -7 -6 -5 -5 -5 -5 -4 -4 --------- Run | Yrd Mat Sub Mat Fac Fac Fac Upp Upp Zhi Pro Fac Distress Signals 6 | . 1 . 1 . 3 . . . . . 1 Communications Jammed 2 | . . . . . 2 . . . . . . Distress Signals 2 | . . . . . 2 . . . . . . Times Spotted 143 | . 7 6 34 16 37 2 6 8 . 14 13 Peak Tracking Total 7 | . 4 3 5 6 5 1 5 7 . 7 7 Tactical Retreats 15 | . . . 3 1 5 . 1 1 . 3 1 Traps | -11 -10 -10 -8 -7 -6 -5 -5 -5 -5 -4 -4 ------- Run | Yrd Mat Sub Mat Fac Fac Fac Upp Upp Zhi Pro Fac Traps Triggered 7 | . . 2 . 2 2 1 . . . . . Indirectly . | . . . . . . . . . . . . Trap Hack Attempts . | . . . . . . . . . . . . Triggered . | . . . . . . . . . . . . Disarmed . | . . . . . . . . . . . . Reprogrammed . | . . . . . . . . . . . . Reused . | . . . . . . . . . . . . Traps Extracted . | . . . . . . . . . . . . Installed . | . . . . . . . . . . . . Triggered . | . . . . . . . . . . . . Machines | -11 -10 -10 -8 -7 -6 -5 -5 -5 -5 -4 -4 ---------- Run | Yrd Mat Sub Mat Fac Fac Fac Upp Upp Zhi Pro Fac Machines Disabled 10 | . . 1 2 1 5 1 . . . . . Max in Single Turn 3 | . . 1 1 1 3 1 . . . . . Garrison Access 1 | . . . . . 1 . . . . . . Machines Repaired . | . . . . . . . . . . . . Machines Dismantled . | . . . . . . . . . . . . Machines Sabotaged . | . . . . . . . . . . . . Overloaded Fab Kills . | . . . . . . . . . . . . Hacking | -11 -10 -10 -8 -7 -6 -5 -5 -5 -5 -4 -4 --------- Run | Yrd Mat Sub Mat Fac Fac Fac Upp Upp Zhi Pro Fac Machines Accessed 37 | . 2 1 6 10 6 5 . . 5 . 2 Terminals 13 | . 2 . 3 3 1 3 . . . . 1 Fabricators 2 | . . . . 2 . . . . . . . Repair Stations 3 | . . . 1 . 2 . . . . . . Recycling Units 7 | . . . 1 2 1 2 . . . . 1 Scanalyzers 3 | . . . 1 1 1 . . . . . . Garrison Access 3 | . . . . 2 1 . . . . . . Total Hacks 109 | . 6 9 28 21 14 12 . . 14 . 5 Successful 52 | . 3 9 13 5 2 5 . . 14 . 1 Failed 57 | . 3 . 15 16 12 7 . . . . 4 Catastrophic 12 | . 1 . 2 5 2 2 . . . . . Database Lockouts . | . . . . . . . . . . . . Manual 38 | . 5 . 13 9 4 5 . . . . 2 Terminals 40 | . 6 . 14 5 3 9 . . . . 3 Fabricators 3 | . . . . 3 . . . . . . . Repair Stations 8 | . . . 5 . 3 . . . . . . Recycling Units 15 | . . . 4 4 2 3 . . . . 2 Scanalyzers 11 | . . . 5 3 3 . . . . . . Garrison Access 9 | . . . . 6 3 . . . . . . Terminal Hacks 27 | . 1 9 1 . . 2 . . 14 . . Record 10 | . . 8 . . . . . . 2 . . Part Schematic 4 | . . . . . . . . . 4 . . Robot Analysis 4 | . . . . . . . . . 4 . . Prototype ID Bank 5 | . 1 . . . . . . . 4 . . Branch Access Points 1 | . . . 1 . . . . . . . . Locate Traps 2 | . . . . . . 2 . . . . . Proto ID Catalog 1 | . . 1 . . . . . . . . . Fabricator Hacks 1 | . . . . 1 . . . . . . . Network Status 1 | . . . . 1 . . . . . . . Repair Station Hacks 3 | . . . 3 . . . . . . . . Scan Component 2 | . . . 2 . . . . . . . . Repair 1 | . . . 1 . . . . . . . . Recycling Unit Hacks 1 | . . . 1 . . . . . . . . Retrieve Components 1 | . . . 1 . . . . . . . . Scanalyzer 6 | . . . 4 1 1 . . . . . . Retrieve Study 6 | . . . 4 1 1 . . . . . . Garrison Access Hacks 1 | . . . . . 1 . . . . . . Seal Access 1 | . . . . . 1 . . . . . . Unauthorized Hacks 13 | . 2 . 4 3 . 3 . . . . 1 Terminals 10 | . 2 . 3 2 . 3 . . . . . Track 5 | . 1 . 1 1 . 2 . . . . . Botnet 5 | . 1 . 2 1 . 1 . . . . . Fabricators 1 | . . . . 1 . . . . . . . Recompile 1 | . . . . 1 . . . . . . . Repair Stations . | . . . . . . . . . . . . Recycling Units 2 | . . . 1 . . . . . . . 1 Recyclers 1 | . . . . . . . . . . . 1 Mask 1 | . . . 1 . . . . . . . . Scanalyzers . | . . . . . . . . . . . . Garrison Access . | . . . . . . . . . . . . Data Cores Recovered 1 | . . . . 1 . . . . . . . Used . | . . . . . . . . . . . . Hacking Detections 30 | . 2 . 6 9 6 5 . . . . 2 Full Trace Events 5 | . . . . 3 2 . . . . . . Feedback Events . | . . . . . . . . . . . . Feedback Blocked . | . . . . . . . . . . . . Robot Schematics Acquired . | . . . . . . . . . . . . Robots Built . | . . . . . . . . . . . . Authchips . | . . . . . . . . . . . . Time . | . . . . . . . . . . . . Total Robot Build Rating . | . . . . . . . . . . . . Part Schematics Acquired 4 | . . . . . . . . . 4 . . Parts Built . | . . . . . . . . . . . . Authchips . | . . . . . . . . . . . . Time . | . . . . . . . . . . . . Total Part Build Rating . | . . . . . . . . . . . . Part Studies Acquired 6 | . . . 4 1 1 . . . . . . Parts Repaired 1 | . . . 1 . . . . . . . . Time 53 | . . . 53 . . . . . . . . Parts Recycled . | . . . . . . . . . . . . Recycled Matter . | . . . . . . . . . . . . Retrieved Matter . | . . . . . . . . . . . . Retrieved Components 10 | . . . 10 . . . . . . . . Parts Scanalyzed . | . . . . . . . . . . . . Part Schematics Acquired . | . . . . . . . . . . . . Parts Damaged . | . . . . . . . . . . . . Bothacking | -11 -10 -10 -8 -7 -6 -5 -5 -5 -5 -4 -4 ------------ Run | Yrd Mat Sub Mat Fac Fac Fac Upp Upp Zhi Pro Fac Used RIF Installer . | . . . . . . . . . . . . Robots Hacked . | . . . . . . . . . . . . Non-combat . | . . . . . . . . . . . . Combat . | . . . . . . . . . . . . Robot Hacks Applied . | . . . . . . . . . . . . Relay Couplers Released . | . . . . . . . . . . . . Fabnet Peak Effective % . | . . . . . . . . . . . . Robots Rewired . | . . . . . . . . . . . . Allies Hacked . | . . . . . . . . . . . . Hacks Repelled . | . . . . . . . . . . . . Allies | -11 -10 -10 -8 -7 -6 -5 -5 -5 -5 -4 -4 -------- Run | Yrd Mat Sub Mat Fac Fac Fac Upp Upp Zhi Pro Fac Total Allies . | . . . . . . . . . . . . Largest Group . | . . . . . . . . . . . . Highest-Rated Group . | . . . . . . . . . . . . Highest-Rated Ally . | . . . . . . . . . . . . Total Orders . | . . . . . . . . . . . . Ally Attacks . | . . . . . . . . . . . . Total Damage . | . . . . . . . . . . . . Kills . | . . . . . . . . . . . . Allies Corrupted . | . . . . . . . . . . . . Allies Melted . | . . . . . . . . . . . . Intel | -11 -10 -10 -8 -7 -6 -5 -5 -5 -5 -4 -4 ------- Run | Yrd Mat Sub Mat Fac Fac Fac Upp Upp Zhi Pro Fac Active Infowar (turns) 5882 | 10 168 113 521 1200 1778 209 692 382 201 332 276 Optics 2092 | . . . . . . 209 692 382 201 332 276 Sensors 1826 | . . . . . 1151 52 623 . . . . Structural 3090 | . . . 521 1036 1533 . . . . . . Traps 1033 | . . . . 469 564 . . . . . . Seismic 1349 | 10 168 113 . 373 685 . . . . . . Cloaking 383 | . . . . . 25 . 358 . . . . Jamming 912 | . . . . . 912 . . . . . . Robot Analysis Total 4 | . . . . . . . . . 4 . . Derelict Logs Recovered 7 | . . 1 . . . . 2 2 . 2 . Drone Launches . | . . . . . . . . . . . . Drone Recoveries . | . . . . . . . . . . . . Exploration | -11 -10 -10 -8 -7 -6 -5 -5 -5 -5 -4 -4 ------------- Run | Yrd Mat Sub Mat Fac Fac Fac Upp Upp Zhi Pro Fac Turns Passed 7690 | 62 168 974 1030 1240 1934 399 692 382 201 332 276 Spaces Moved 5913 | 43 114 664 553 1048 1274 417 672 372 195 368 193 Core 6 | 6 . . . . . . . . . . . Treads . | . . . . . . . . . . . . Legs 1404 | 37 114 664 553 36 . . . . . . . Wheels 1706 | . . . . 1012 694 . . . . . . Hover 2797 | . . . . . 580 417 672 372 195 368 193 Flight . | . . . . . . . . . . . . Fastest Speed 46 | 50 120 120 113 100 52 48 46 46 98 55 55 Average Speed 98 | 110 120 128 119 100 102 65 74 95 98 74 96 Slowest Speed 230 | 120 120 130 123 118 160 106 102 102 98 98 230 Overloaded Moves . | . . . . . . . . . . . . Propulsion Burnouts . | . . . . . . . . . . . . Robots Hopped . | . . . . . . . . . . . . Potential Cave-ins . | . . . . . . . . . . . . Cave-ins Triggered . | . . . . . . . . . . . . Teleports 1 | . . . . . . . . . 1 . . Exploration Rate (%) 37 | 3 17 33 43 28 38 11 86 54 63 66 8 Regions Visited 11 Branch Regions 5 Pre-discovered Areas 1 | . . . . . . . 1 . . . . Known Exits Taken 7 | . . . . 1 1 1 1 1 1 1 . Unknown Exits Taken 4 | 1 1 1 1 . . . . . . . . Scrap Searched 10 | . . 3 . . . . 3 2 . 2 . Spaces Dug 59 | . . . . 9 12 3 31 . . . 4 Terrain Destroyed 231 | . 23 11 30 9 61 3 90 . . . 4 Melee 28 | . . . . 9 12 3 . . . . 4 Projectile 9 | . . . 9 . . . . . . . . AOE 194 | . 23 11 21 . 49 . 90 . . . . Terrain Rammed . | . . . . . . . . . . . . Walls Destroyed . | . . . . . . . . . . . . Machines Disabled . | . . . . . . . . . . . . Actions | -11 -10 -10 -8 -7 -6 -5 -5 -5 -5 -4 -4 --------- Run | Yrd Mat Sub Mat Fac Fac Fac Upp Upp Zhi Pro Fac Total 7203 | 52 133 723 780 1176 1724 518 857 391 203 403 243 Wait 576 | . 10 3 72 21 233 47 170 7 . 10 3 Move 5903 | 42 113 663 552 1047 1274 416 671 371 194 367 193 Hop . | . . . . . . . . . . . . Pick Up 87 | 2 1 10 19 13 28 8 . 2 1 1 2 Fast Attach 65 | 7 . 4 11 8 12 11 1 1 5 2 3 Attach 63 | . . 5 10 6 23 7 1 5 . 4 2 Detach 35 | . . 3 6 5 9 6 1 . 3 . 2 Swap 55 | . 2 2 10 11 17 4 7 1 . 1 . Drop 72 | . . 3 19 19 24 4 . . . 2 1 Fire 110 | 1 7 30 59 5 2 . 6 . . . . Melee 236 | . . . 21 41 102 15 . 4 . 16 37 Ram . | . . . . . . . . . . . . Kick 1 | . . . 1 . . . . . . . . Crush . | . . . . . . . . . . . . Escape Stasis . | . . . . . . . . . . . . Rewire . | . . . . . . . . . . . . Trap . | . . . . . . . . . . . . Miscellaneous . | . . . . . . . . . . . . Route ------- -11/Scrapyard -10/Materials -10/Subcaves -8/Materials -7/Factory (discovered 2 exits: *Fac x2) -6/Factory (discovered 2 exits: *Fac / *Ext) -5/Factory -5/Upper Caves -5/Upper Caves -5/Zhirov -4/Proximity Caves -4/Factory History --------- Turn | Location | Event 7 | -11/Scrapyard | Discovered new exit (range 16) 63 | -11/Scrapyard | Entered Materials 219 | -10/Materials | Discovered new exit (range 8) 231 | -10/Materials | Entered Subcaves 232 | -10/Subcaves | Approached by a straggling Scientist 313 | -10/Subcaves | Build established: Mutant 331 | -10/Subcaves | A Subdweller sparked back to life 331 | -10/Subcaves | A Subdweller sparked back to life 331 | -10/Subcaves | A Subdweller sparked back to life 371 | -10/Subcaves | Core integrity fell below 50% 378 | -10/Subcaves | Found Prototype Leg 378 | -10/Subcaves | Identified Cargo Legs 379 | -10/Subcaves | Attached Cargo Legs, gained temporary slots: Utility x2 397 | -10/Subcaves | Lost 4 parts (1p1u2w) 432 | -10/Subcaves | Shifting Twisted Machinery released Sub. Machine Gun 458 | -10/Subcaves | Shifting Twisted Machinery released Sub. Power Source 684 | -10/Subcaves | Discovered new exit (range 15) 770 | -10/Subcaves | Disturbed a concealed Subdweller 1047 | -10/Subcaves | Visited 4L-MR0's lab 1076 | -10/Subcaves | Found Gun Armor 1205 | -10/Subcaves | Entered Materials 1205 | -8/Materials | Evolved 4 slots: Propulsion x2, Utility x1, Weapon x1 2114 | -8/Materials | Repaired Broken Katana 2230 | -8/Materials | Build established: Scavenger-Gladiator 2231 | -8/Materials | Discovered new exit (range 3) 2235 | -8/Materials | Entered Factory 2235 | -7/Factory | Evolved 2 slots: Utility x2 2554 | -7/Factory | Build established: Gladiator 3244 | -7/Factory | Discovered new exit (range 6) 3254 | -7/Factory | Identified exit to Factory 3398 | -7/Factory | Discovered exit to Factory (range 5) 3423 | -7/Factory | Attached Gun Armor, gained temporary slots: Weapon x2 3475 | -7/Factory | Entered another Factory area 3475 | -6/Factory | Evolved 2 slots: Utility x2 3564 | -6/Factory | Discovered new exit (range 15) 3579 | -6/Factory | Identified exit to Extension 3820 | -6/Factory | Build established: Infiltrator-Gladiator 4223 | -6/Factory | Cargo convoy interrupted 4365 | -6/Factory | Lost 3 parts (1n1u1w) 4474 | -6/Factory | Lost 6 parts (1n4u1w) 4708 | -6/Factory | Build established: Gladiator 5152 | -6/Factory | Core integrity fell below 50% 5391 | -6/Factory | Discovered new exit (range 5) 5408 | -6/Factory | Identified exit to Factory 5409 | -6/Factory | Entered another Factory area 5409 | -5/Factory | Evolved 2 slots: Power x1, Propulsion x1 5440 | -5/Factory | Lost 5 parts (1p1n2u1w) 5805 | -5/Factory | Discovered new exit (range 2) 5806 | -5/Factory | Identified exit to Upper Caves 5808 | -5/Factory | Entered Upper Caves 6080 | -5/Upper Caves | Learned location of Armory (-4) 6138 | -5/Upper Caves | Spotted B-75 Beast 6302 | -5/Upper Caves | Learned Factory terminal intel 6455 | -5/Upper Caves | Discovered new exit (range 16) 6468 | -5/Upper Caves | Lost 4 parts (2n2u) 6474 | -5/Upper Caves | Identified exit to Upper Caves 6500 | -5/Upper Caves | Entered another Upper Caves area 6603 | -5/Upper Caves | Learned Factory security intel 6643 | -5/Upper Caves | Learned Factory stockpile data 6720 | -5/Upper Caves | Encountered a Warlord checkpoint 6817 | -5/Upper Caves | Attracted the attention of an 0b10 outpost 6879 | -5/Upper Caves | Discovered new exit (range 4) 6881 | -5/Upper Caves | Identified exit to Zhirov 6882 | -5/Upper Caves | Entered Zhirov 6882 | -5/Zhirov | Discovered new exit (range 3) 6895 | -5/Zhirov | Lost 3 parts (2p1n) 6900 | -5/Zhirov | Met Zhirov 6940 | -5/Zhirov | Zhirov requested help retrieving the SGEMP Prototype 6977 | -5/Zhirov | Found Alien Artifact 6977 | -5/Zhirov | Identified Integrated Reactor 6977 | -5/Zhirov | Installed Integrated Reactor, increased core energy generation (+10) 6989 | -5/Zhirov | Found Alien Artifact 6989 | -5/Zhirov | Identified Transdimensional Reconstructor 6989 | -5/Zhirov | Warped through subspace 7082 | -5/Zhirov | Identified exit to Proximity Caves 7083 | -5/Zhirov | Entered Proximity Caves 7084 | -4/Proximity Caves | Learned Research trap positions 7252 | -4/Proximity Caves | Learned 8 Research zone layouts 7291 | -4/Proximity Caves | Lost 6 parts (1p2n1u2w) 7320 | -4/Proximity Caves | Spotter reported a threat 7373 | -4/Proximity Caves | Spotter reported a threat 7412 | -4/Proximity Caves | Discovered new exit (range 6) 7414 | -4/Proximity Caves | Identified exit to Factory 7415 | -4/Proximity Caves | Entered Factory 7415 | -4/Factory | Evolved 2 slots: Utility x1, Weapon x1 7418 | -4/Factory | Loaded intel: 26 terminal locations 7574 | -4/Factory | Spotted B-86 Titan 7665 | -4/Factory | Search patrols dispatched 7691 | -4/Factory | Self-destructed Last Messages --------------- 07651_ O-32 Director sends out distress signal. 07651_ O-32 Director: "IFF HANDSHAKE FAILED. SECURING TERMINAL." 07653_ Lgt. Nuclear Core destroyed. 07656_ ALERT: Hostiles spotted, dispatching reinforcements to Terminal F020. 07657_ S-27 Virus destroyed. 07659_ Destroyed VTOL Module. 07659_ Exp. Core Shielding destroyed. 07661_ ALERT: Security rotation in progress. 07661_ S-27 Virus destroyed. 07665_ ALERT: Heightened foreign activity detected, multiple search patrols dispatched. 07668_ Gyrokinetic Inverter destroyed. 07671_ Gravmag Array destroyed. 07671_ Critical hit (Burn: +37). 07676_ G-67 Veteran destroyed. 07677_ Gyrokinetic Inverter destroyed. 07687_ Hvy. Pick destroyed. 07687_ S-27 Virus destroyed. 07690_ Slug penetrates Wall. Map ----- +----------------------------------------------------+ | ???# ## # #?????????????? | | ???# ## + #?????????????? | | ???# ## # #?????????????? | | ???#######+######"######+# ###???????????? | | #####?# ????? | | #?# ????? | | #?# ????? | | """ ### " ?????? | | """ ##" " ????? | | """ ######+################### " ###????? | | " ! # [ # " !! ?????? | | """ # ] # # " !! ] #????? | | """ # ] # [ + " !! ###????? | | """ # # # " #??????? | | # """ """ # # " ? "??????? | | """ # """ """ # """" # " ?? "??????? | | """ # """ """ # """" #?"" ? ???????????? | | """ # # """" #?"" ??????????????? | | # """ """ # """" #??? ??????????????? | | # """ """ # """ ="""" #???????????????????? | | # """ """ # "Y ==""""!#???????????????????? | | ##### # """!%""""%#????????????????!??? | | ????##########+### [=[[^%=[#???????????????????? | | ?????????????????########g####???????????????????? | | ????????????????????????#[#??????????????????????? | | ????????????????????????#@#??????????????????????? | | ????????????????????????#%#??????????????????????? | | ????????????????????????!!=??????????????????????? | | ???????????????????????? [ ??????????????????""T"" | | ??????????????????????? ?????????????????""""" | | ??????????????????????? ?????????????????????? | | ?????????????!???????? oh????????????????????? | | ??????????????????????" """ ????????????????????? | | ?????????????????????"" """ ""???????????!??????? | | ?????????????????????"" """ ""??????????????????? | | ???????????""??????? ""??????????????????? | | ???????????"T???????""" """ T??????????????????? | | ???????????""????????"" """ ""??????????????????? | | ?????????????????????"" ??? ""??????????????????? | | ????????????????????? ??? ""??????????????????? | | ?????????????????????? ??? #???????????????????? | | ?????????????????????? ????? #???????????????????? | | ?????????????????????? ????? #???????????????????? | | ?????????????????????? ????? #???????????????????? | | ?????????????????????????????????????????????????? | | ???????????""????????????????????????????????????? | | ???????????""????????????????????????????????????? | | ???????????T"????????????????????????????????????? | | ??????*????""????????????????????????????????????? | | ???????????""????????????????????????????????????? | +----------------------------------------------------+ Best States ------------- Heat Dissipation 43 Coolant Potential 100 Energy Generation 44 Energy Capacity 815 Matter Stores 300 Matter Capacity 300 Sight Range 22 Robot Scan Range 16 Terrain Scan Density 10 Jamming Range 12 Cloak Strength 3 Armor Coverage 450 Core Shielding 40 Propulsion Shielding 33 Melee Speed Boost 20 Phase Shifting 5 Evasion (%) 55 Melee Accuracy 16 Target Analysis 5 Offensive Hacking 26 Defensive Hacking 10 Authchip Count 1 Item Schematics ----------------- Assault Drone Bay | -5/Zhirov | Free Exp. Heat Sink | -5/Zhirov | Free Exp. Optical Array | -5/Zhirov | Free Imp. Arc Thrower | -5/Zhirov | Free Robot Schematics ------------------ None Fabricated ------------ Nothing Repaired ---------- Katana | 76% | -8/Materials | Broken Studied --------- Aluminum Leg | -8/Materials | Hacked Wheel | -8/Materials | Hacked Shotgun | -8/Materials | Hacked Grenade Launcher | -8/Materials | Hacked Katana | -7/Factory | Hacked Imp. Gravmag System | -6/Factory | Hacked Alien Tech Used ----------------- Integrated Reactor Transdimensional Reconstructor Achievements -------------- Bending The Rules Mistaken Identity Challenges ------------ None Game ------ Seed GhostPointRailcannon Manual? 0 Play Time 02:01:25 Cumulative 120.1 hours Start 2026.03.31 @ 09:12:30 End 2026.03.31 @ 12:59:32 Sessions 3 Manual Loads 0 Difficulty Rogue Special Mode None Game No. 116 Rogue 71 Adventurer 45 Explorer 0 Win Type - Total 3 Types 2/0/0/1/0/0/0/0/0/0 Lore% 65 Gallery% 57 Achievement% 41 Wizard Run 0 Options --------- Layout 0 ASCII 0 Keyboard 1 Movement Numpad Keybinds 0 Fullscreen 1 Font 24/Smallcaps Map View 76x50 Zoom Use 0% Tactical HUD 1 Map Filters NONE Filters NONE Steam 1 RUN: 4ebb14f8-f538-4347-8a41-fe470982fabc